Cogmind - Beta 15 @@@ ROGUE MODE // 2025.06.15 @ 13:22:31 Player: Longball Result: Destroyed by G-47 Trooper with Particle Gun Performance ------------- Evolutions (3) 1500 Regions Visited (6) 1200 Robots Destroyed (43) 215 Value Destroyed (1633) 1633 Prototype IDs (5) 100 Alien Tech Used (0) 0 Bonus (359) 359 TOTAL SCORE: 5007 Bonus ------- Follower Combat Kills 359 Cogmind --------- Core Integrity 0/700 Matter 184/300 Energy 145/150 System Corruption 20% Temperature Cool (9) Movement Rolling (105) Ox1 Location -7/Storage Parts ------- > --- POWER (1) -------- Micro Nuclear Core (fused) > --- PROPULSION (6) --- Flexi-carbon Leg Armored Wheel > --- UTILITY (4) ------ Coolant Injector Targeting Computer Target Analyzer Hacking Suite > --- WEAPON (2) ------- Mini Assault Cannon Heavy Mace > --- INVENTORY (5) ---- Micro Nuclear Core Particle Gun Heavy Ion Cannon Precision Assault Rifle Mini Assault Cannon Peak State ------------ > --- POWER ------------ Micro Nuclear Core > --- PROPULSION ------- Aluminum Leg Carbon-fiber Leg Carbon-fiber Leg VSS Leg VSS Leg > --- UTILITY ---------- Coolant Injector Targeting Computer Target Analyzer Layered Light Armor Plating > --- WEAPON ----------- Mini Assault Cannon Mini Assault Cannon > --- INVENTORY -------- Micro Nuclear Core Particle Gun Heavy Ion Cannon Precision Assault Rifle Heavy Mace [Rating: 40] Favorites ----------- Power Heavy Ion Engine Engine Heavy Ion Engine Power Core Micro Nuclear Core Propulsion Light Treads Treads Light Treads Leg Aluminum Leg Wheel Compact Wheel Utility Small Storage Unit Device Heat Sink Storage Small Storage Unit Processor Targeting Computer Hackware Hacking Suite Protection Layered Light Armor Plating Weapon Beam Cannon Energy Gun Improved EM Shotgun Energy Cannon Beam Cannon Ballistic Gun Precision Assault Rifle Ballistic Cannon Mini Assault Cannon Impact Weapon Mace Slashing Weapon Greatsword Build | -11 -10 -9 -9 -8 -7 -7 ------- Run | Yrd Mat Mat Min Mat Fac Sto Slots Evolved 6 | . . 2 . 2 2 . Power . | . . . . . . . Propulsion 4 | . . 2 . . 2 . Utility 2 | . . . . 2 . . Weapon . | . . . . . . . Parts Attached 61 | 6 1 11 3 8 26 6 Power 6 | 1 . 2 . . 3 . Engine 4 | 1 . 2 . . 1 . Core 2 | . . . . . 2 . Reactor . | . . . . . . . Propulsion 26 | 2 . 7 3 2 10 2 Treads 4 | . . 2 . 2 . . Leg 19 | 2 . 4 3 . 9 1 Wheel 3 | . . 1 . . 1 1 Hover . | . . . . . . . Flight . | . . . . . . . Utility 13 | 1 . 1 . 4 6 1 Device 5 | . . . . 3 2 . Storage 1 | 1 . . . . . . Processor 5 | . . 1 . 1 3 . Hackware 1 | . . . . . . 1 Protection 1 | . . . . . 1 . Artifact . | . . . . . . . Weapon 16 | 2 1 1 . 2 7 3 Energy Gun 5 | 1 . 1 . 1 2 . Energy Cannon 2 | . 1 . . 1 . . Ballistic Gun 4 | 1 . . . . 3 . Ballistic Cannon 2 | . . . . . . 2 Launcher . | . . . . . . . Special Weapon . | . . . . . . . Impact Weapon 2 | . . . . . 1 1 Slashing Weapon 1 | . . . . . 1 . Piercing Weapon . | . . . . . . . Special Melee Weapon . | . . . . . . . Unidentified Prototypes 5 | . . 2 . 1 1 1 Parts Lost 23 | . . . . . 16 7 Power 3 | . . . . . 3 . Propulsion 12 | . . . . . 6 6 Utility 7 | . . . . . 6 1 Weapon 1 | . . . . . 1 . Highest Loss Streak 8 | . . . . . 8 2 To Critical Strikes . | . . . . . . . Average Backups 6 | 3 6 7 8 8 5 5 Power . | . 1 1 1 1 . 1 Propulsion 2 | 2 4 2 2 3 1 . Utility . | . . 1 2 . . . Weapon 2 | . 1 2 3 3 2 4 Tool/Special . | . . . . . . . Unused Backups 10 | . . 3 . 1 3 3 Power 1 | . . . . . . 1 Propulsion 4 | . . 2 . . 2 . Utility 1 | . . . . 1 . . Weapon 4 | . . 1 . . 1 2 Tool/Special . | . . . . . . . Average Slot Usage (%) 83 | . 74 91 100 95 75 76 Engine 5 | . 13 11 11 9 2 . Core 1 | . . . . . 2 7 Treads 10 | . . 9 . 28 9 . Leg 22 | . 19 27 44 7 24 23 Device 6 | . . . . 13 7 7 Storage 5 | . 14 11 11 9 2 . Processor 10 | . . 10 11 9 11 15 Energy Gun 5 | . 4 10 11 3 4 . Energy Cannon 5 | . 8 10 11 14 . . Ballistic Gun 2 | . 13 . . . 3 1 Ballistic Cannon 1 | . . . . . . 11 Peak Build Rating 40 | 6 6 15 15 19 39 40 Average Rating 21 | 4 5 12 15 16 26 35 On Entrance 14 | . 6 5 15 15 19 39 Naked Turns . | . . . . . . . Heaviest Build 24 | 11 12 19 19 24 23 19 Greatest Support 84 | 20 20 40 40 80 84 79 Greatest Overweight (x) 3 | . 3 1 . 1 . 1 Average Overweight (x) . | . . . . . . . Largest Inventory Capacity 8 | 8 8 8 8 8 8 5 Average Capacity 6 | 6 8 8 8 8 5 5 Most Carried 8 | 6 7 8 8 8 8 5 Average Carried 6 | 3 6 7 8 7 5 5 Final Capacity 8 | 8 8 8 8 8 5 5 Final Carried 8 | 6 7 8 8 8 5 5 Class Distribution -------------------- 77% | Mutant 19% | Scavenger-Mutant 3% | Commander-Mutant Dominant Class ---------------- Mutant | -10/Materials Mutant | -9/Materials Mutant | -9/Mines Mutant | -8/Materials Mutant | -7/Factory Scavenger-Mutant | -7/Storage Resources | -11 -10 -9 -9 -8 -7 -7 ----------- Run | Yrd Mat Mat Min Mat Fac Sto Matter Collected 1166 | 260 17 196 40 80 344 229 Remotely . | . . . . . . . Salvage Created 1653 | . 42 417 151 276 568 199 Parts 97 | . 4 23 9 21 30 10 Haulers Intercepted . | . . . . . . . Recyclers Shooed 1 | . . 1 . . . . Parts Field Recycled . | . . . . . . . Retrieved Matter . | . . . . . . . Parts Self-Destructed . | . . . . . . . Prevented . | . . . . . . . Kills | -11 -10 -9 -9 -8 -7 -7 ------- Run | Yrd Mat Mat Min Mat Fac Sto Combat Hostiles Destroyed 37 | . 3 7 6 4 13 4 Melee 7 | . . . . . 6 1 Guns 13 | . 3 2 2 . 5 1 Cannons 12 | . . 4 3 3 . 2 AOE 2 | . . 1 1 . . . Classes Destroyed 10 | . 1 3 . 3 2 1 Builder 1 | . . . . 1 . . Recycler 1 | . . 1 . . . . Operator 3 | . . . . 1 1 1 Watcher 1 | . . . . 1 . . Swarmer 7 | . 3 . 4 . . . Grunt 17 | . . 5 2 3 6 1 Sentry 5 | . . 2 . 1 . 2 Specialist 1 | . . . . . . 1 Hunter 1 | . . . . . 1 . Programmer 6 | . . . . . 6 . Best Kill Streak 5 | . 3 4 4 5 2 2 Combat Bots Only 4 | . 3 4 4 3 2 2 Max Kills in Single Turn 1 | . 1 1 1 1 1 1 Gunslinging . | . . . . . . . Exploded 1 | . . 1 1 . . . Melee 1 | . . . . . 1 1 Uniques/NPCs Destroyed . | . . . . . . . Combat | -11 -10 -9 -9 -8 -7 -7 -------- Run | Yrd Mat Mat Min Mat Fac Sto Hostile Shots Fired 334 | . 36 26 10 20 116 126 Missed 88 | . 7 8 3 7 29 34 Hits 246 | . 29 18 7 13 87 92 Projectile 246 | . 29 18 7 13 87 92 Critical Strikes 5 | . . . . . 5 . Part Disruptions 1 | . . . . . 1 . Damage Taken 4409 | . 300 266 111 195 2367 1170 Core 900 | . 116 51 18 14 430 271 Absorbed by Shields . | . . . . . . . Regen/Repaired (Parts) 146 | . . 146 . . . . Core Remaining (%) 83 | 100 53 . 82 97 . . Volleys Fired 96 | . 13 18 7 16 19 23 Largest 2 | . 2 2 2 2 2 2 Hottest 141 | . 80 105 105 123 141 80 Shots Fired 182 | . 26 34 14 29 35 44 Gun 84 | . 20 16 7 3 35 3 Cannon 98 | . 6 18 7 26 . 41 Launcher . | . . . . . . . Special . | . . . . . . . Kinetic 71 | . 13 . . . 14 44 Thermal 69 | . 6 18 7 17 21 . Explosive . | . . . . . . . Electromagnetic 42 | . 7 16 7 12 . . Robot Hit Streak 10 | . 5 10 2 7 4 8 Robot Miss Streak 6 | . 4 6 2 3 2 3 Penetration Max . | . . . . . . . Secondary Targets 2 | . 2 . . . . . Max Gunslinging Chain 1 | . 1 . . . . . Shots Hit Robots 139 | . 14 25 8 20 45 27 Core Hits 66 | . 6 17 7 9 17 10 Critical Kills 3 | . . . . . 3 . Critical Parts Destroyed 3 | . . . . . 3 . Critical Strikes 9 | . . . . . 7 2 Burn 1 | . . . . . 1 . Destroy 1 | . . . . . 1 . Blast 2 | . . . . . . 2 Smash 5 | . . . . . 5 . Melee Attacks 63 | . . . . . 49 14 Impact 43 | . . . . . 29 14 Slashing 20 | . . . . . 20 . Piercing . | . . . . . . . Sneak Attacks 2 | . . . . . 1 1 Combat Hostiles . | . . . . . . . Follow-up Attacks . | . . . . . . . Damage Inflicted 3629 | . 197 587 151 471 1361 862 Guns 870 | . 99 223 51 35 412 50 Cannons 1282 | . 52 212 71 436 . 511 Explosions 227 | . 46 152 29 . . . Melee 1247 | . . . . . 946 301 Ramming 3 | . . . . . 3 . Kinetic 803 | . 46 . . . 196 561 Thermal 989 | . 98 364 100 211 216 . Explosive . | . . . . . . . Electromagnetic 587 | . 53 223 51 260 . . Impact 831 | . . . . . 530 301 Slashing 416 | . . . . . 416 . Piercing . | . . . . . . . Highest Corruption 20 | . . . . . 20 20 Average Corruption 18 | . . . . . 17 20 Corruption Purged . | . . . . . . . Corruption Blocked . | . . . . . . . Effects 68 | . . . . . 48 20 Message Errors 15 | . . . . . 10 5 Matter Fused 17 | . . . . . 14 3 Heat Flow Errors 9 | . . . . . 5 4 Energy Discharges 5 | . . . . . 3 2 Parts Rejected 1 | . . . . . 1 . Parts Fused 2 | . . . . . 1 1 Data Loss (minor) 8 | . . . . . 4 4 Data Loss (major) 4 | . . . . . 4 . Misfires 3 | . . . . . 3 . Alerts 1 | . . . . . 1 . Misdirections 1 | . . . . . 1 . Weapon Failures 2 | . . . . . 1 1 Overload Shots . | . . . . . . . Overflow Damage 221 | . . 18 . . 187 16 Projectiles 16 | . . . . . . 16 Explosions 18 | . . 18 . . . . Melee 187 | . . . . . 187 . Knockbacks 7 | . . . . . 5 2 Impact 4 | . . . . . 4 . Kinetic 2 | . . . . . . 2 Secondary 1 | . . . . . 1 . Self-Inflicted Damage 78 | . . 39 39 . . . Shots 2 | . . 1 1 . . . Rammed . | . . . . . . . Targets Rammed 1 | . . . . . 1 . Kicked 1 | . . . . . 1 . Crushed . | . . . . . . . Highest Temperature 324 | . 200 306 168 225 324 186 Average Temperature 79 | . 66 109 68 82 79 65 Received Heat Transfer 1149 | . 111 108 18 117 486 309 Effects 5 | . . . . 3 2 . Interference 5 | . . . . 3 2 . Siege Activations . | . . . . . . . Martial Activations . | . . . . . . . Shielding Activations . | . . . . . . . Robots Disrupted . | . . . . . . . Combat Hostiles . | . . . . . . . Robots Corrupted 4 | . . . . 1 3 . Combat Hostiles 3 | . . . . 1 2 . Parts Fried 4 | . . 1 . 2 1 . Impact Corruptions 10 | . . . . . 10 . Robots Melted . | . . . . . . . Combat Hostiles . | . . . . . . . Parts Melted . | . . . . . . . Heat Transferred 1955 | . 161 594 198 444 558 . Parts Sabotaged . | . . . . . . . Parts Stolen . | . . . . . . . Parts Stripped . | . . . . . . . Power Chain Reactions 4 | . 1 2 1 . . . Alert | -11 -10 -9 -9 -8 -7 -7 ------- Run | Yrd Mat Mat Min Mat Fac Sto Maximum Alert Level 1 | . . . . . . 1 Low Security (%) 99 | 100 100 100 100 100 100 92 Level 1 . | . . . . . . 7 Level 2 . | . . . . . . . Level 3 . | . . . . . . . Level 4 . | . . . . . . . Level 5 . | . . . . . . . High Security . | . . . . . . . Max Security . | . . . . . . . Peak Influence 288 | . 81 103 109 65 74 288 Initial 42 | . . . 33 42 . 24 Average 29 | . 36 17 34 17 14 123 Influence Increases 1529 | . 91 208 146 127 358 599 Destroy 0b10 Robot/C 940 | . 60 140 120 80 260 280 Destroy 0b10 Robot/NC 30 | . . 5 . 15 5 5 Destroy Leader 232 | . 10 40 20 22 90 50 Allied During Kill 177 | . . . . . . 177 Successful Hack 14 | . . 4 . 10 . . Disable Machine 30 | . . . . . . 30 Destroy Structure 31 | . 6 4 6 . 3 12 Lose Combat Pursuer 75 | . 15 15 . . . 45 Influence Decreases 1406 | . 91 121 124 236 304 530 Entered New Map 151 | . . . 54 67 . 30 Time Decay 853 | . 70 121 70 169 233 190 Lost Part 141 | . . . . . 71 70 Lost Ally 240 | . . . . . . 240 Purge Threat 21 | . 21 . . . . . Squads Dispatched 12 | . 1 1 . 1 6 3 Investigation 1 | . . . . 1 . . Extermination 3 | . . . . . 3 . Reinforcement 6 | . 1 1 . . 3 1 Assault 2 | . . . . . . 2 Garrison . | . . . . . . . Intercept . | . . . . . . . Searches Triggered . | . . . . . . . Construction Impeded . | . . . . . . . Haulers Reinforced 1 | . . . . . 1 . Active Scanning Responses . | . . . . . . . Cargo Convoy Interrupts 1 | . . . . . 1 . Stealth | -11 -10 -9 -9 -8 -7 -7 --------- Run | Yrd Mat Mat Min Mat Fac Sto Distress Signals 2 | . . 2 . . . . Communications Jammed . | . . . . . . . Distress Signals . | . . . . . . . Times Spotted 81 | . 7 13 6 9 22 24 Peak Tracking Total 10 | . 3 5 3 4 4 10 Tactical Retreats 5 | . 1 1 . . . 3 Traps | -11 -10 -9 -9 -8 -7 -7 ------- Run | Yrd Mat Mat Min Mat Fac Sto Traps Triggered 7 | . 3 . . 1 3 . Indirectly . | . . . . . . . Trap Hack Attempts . | . . . . . . . Triggered . | . . . . . . . Disarmed 6 | . . 6 . . . . Reprogrammed . | . . . . . . . Reused . | . . . . . . . Traps Extracted . | . . . . . . . Installed . | . . . . . . . Triggered . | . . . . . . . Machines | -11 -10 -9 -9 -8 -7 -7 ---------- Run | Yrd Mat Mat Min Mat Fac Sto Machines Disabled 2 | . . . . . . 2 Max in Single Turn 1 | . . . . . . 1 Garrison Access 2 | . . . . 1 . 1 Machines Repaired . | . . . . . . . Machines Dismantled . | . . . . . . . Machines Sabotaged . | . . . . . . . Overloaded Fab Kills . | . . . . . . . Hacking | -11 -10 -9 -9 -8 -7 -7 --------- Run | Yrd Mat Mat Min Mat Fac Sto Machines Accessed 12 | . 1 3 . 3 2 3 Terminals 6 | . 1 2 . 1 1 1 Fabricators . | . . . . . . . Repair Stations 2 | . . 1 . . . 1 Recycling Units . | . . . . . . . Scanalyzers 1 | . . . . 1 . . Garrison Access 3 | . . . . 1 1 1 Total Hacks 34 | . 5 9 . 10 4 6 Successful 17 | . 4 6 . 6 . 1 Failed 17 | . 1 3 . 4 4 5 Catastrophic 6 | . 1 1 . . 2 2 Database Lockouts . | . . . . . . . Manual 6 | . 1 2 . 2 . 1 Terminals 17 | . 5 4 . 4 3 1 Fabricators . | . . . . . . . Repair Stations 6 | . . 5 . . . 1 Recycling Units . | . . . . . . . Scanalyzers 4 | . . . . 4 . . Garrison Access 7 | . . . . 2 1 4 Terminal Hacks 8 | . 4 2 . 2 . . Alert Level 2 | . 1 . . 1 . . Unreport Threat 1 | . 1 . . . . . Locate Traps 2 | . 1 1 . . . . Disarm Traps 1 | . . 1 . . . . Hauler Manifests 1 | . 1 . . . . . Zone Layout 1 | . . . . 1 . . Fabricator Hacks . | . . . . . . . Repair Station Hacks 4 | . . 4 . . . . Scan Component 2 | . . 2 . . . . Repair 2 | . . 2 . . . . Recycling Unit Hacks . | . . . . . . . Scanalyzer 2 | . . . . 2 . . Insert Component 1 | . . . . 1 . . Analyze 1 | . . . . 1 . . Garrison Access Hacks 2 | . . . . 1 . 1 Seal Access 2 | . . . . 1 . 1 Unauthorized Hacks 1 | . . . . 1 . . Terminals . | . . . . . . . Fabricators . | . . . . . . . Repair Stations . | . . . . . . . Recycling Units . | . . . . . . . Scanalyzers 1 | . . . . 1 . . Researchers 1 | . . . . 1 . . Garrison Access . | . . . . . . . Data Cores Recovered 1 | . . . . 1 . . Used . | . . . . . . . Hacking Detections 11 | . 1 3 . 2 2 3 Full Trace Events . | . . . . . . . Feedback Events . | . . . . . . . Feedback Blocked . | . . . . . . . Robot Schematics Acquired . | . . . . . . . Robots Built . | . . . . . . . Authchips . | . . . . . . . Time . | . . . . . . . Total Robot Build Rating . | . . . . . . . Part Schematics Acquired 1 | . . . . 1 . . Parts Built . | . . . . . . . Authchips . | . . . . . . . Time . | . . . . . . . Total Part Build Rating . | . . . . . . . Parts Repaired 2 | . . 2 . . . . Time 52 | . . 52 . . . . Parts Recycled . | . . . . . . . Recycled Matter . | . . . . . . . Retrieved Matter . | . . . . . . . Retrieved Components . | . . . . . . . Parts Scanalyzed 1 | . . . . 1 . . Part Schematics Acquired 1 | . . . . 1 . . Parts Damaged . | . . . . . . . Bothacking | -11 -10 -9 -9 -8 -7 -7 ------------ Run | Yrd Mat Mat Min Mat Fac Sto Used RIF Installer . | . . . . . . . Robots Hacked . | . . . . . . . Non-combat . | . . . . . . . Combat . | . . . . . . . Robot Hacks Applied . | . . . . . . . Relay Couplers Released . | . . . . . . . Fabnet Peak Effective % . | . . . . . . . Robots Rewired . | . . . . . . . Allies Hacked . | . . . . . . . Hacks Repelled . | . . . . . . . Allies | -11 -10 -9 -9 -8 -7 -7 -------- Run | Yrd Mat Mat Min Mat Fac Sto Total Allies 12 | . . . . . . 12 Largest Group 12 | . . . . . . 12 Highest-Rated Group 235 | . . . . . . 235 Highest-Rated Ally 31 | . . . . . . 31 Total Orders . | . . . . . . . Ally Attacks 92 | . . . . . . 92 Total Damage 1307 | . . . . . . 1307 Kills 10 | . . . . . . 10 Allies Corrupted . | . . . . . . . Allies Melted 1 | . . . . . . 1 Intel | -11 -10 -9 -9 -8 -7 -7 ------- Run | Yrd Mat Mat Min Mat Fac Sto Active Infowar (turns) 800 | . . . . 388 412 . Terrain 800 | . . . . 388 412 . Robot Analysis Total . | . . . . . . . Derelict Logs Recovered . | . . . . . . . Drone Launches . | . . . . . . . Drone Recoveries . | . . . . . . . Exploration | -11 -10 -9 -9 -8 -7 -7 ------------- Run | Yrd Mat Mat Min Mat Fac Sto Turns Passed 3500 | 74 188 672 153 571 1461 381 Spaces Moved 1884 | 49 94 370 94 321 734 222 Core 11 | 7 4 . . . . . Treads 556 | . . 162 . 241 153 . Legs 1170 | 42 90 207 94 80 475 182 Wheels 147 | . . 1 . . 106 40 Hover . | . . . . . . . Flight . | . . . . . . . Fastest Speed 50 | 50 100 105 120 120 90 105 Average Speed 128 | 110 147 138 120 150 119 107 Slowest Speed 240 | 120 200 190 120 240 160 112 Overloaded Moves . | . . . . . . . Propulsion Burnouts . | . . . . . . . Robots Hopped . | . . . . . . . Potential Cave-ins . | . . . . . . . Cave-ins Triggered 4 | . . . . . 4 . Exploration Rate (%) 22 | 4 24 35 24 26 20 25 Regions Visited 6 Branch Regions 2 Pre-discovered Areas . | . . . . . . . Known Exits Taken . | . . . . . . . Unknown Exits Taken 6 | 1 1 1 1 1 1 . Scrap Searched . | . . . . . . . Spaces Dug 10 | . . . . . 4 6 Terrain Destroyed 37 | . 6 6 6 . 4 15 Melee 4 | . . . . . 4 . Projectile 15 | . . . . . . 15 AOE 18 | . 6 6 6 . . . Terrain Rammed . | . . . . . . . Walls Destroyed . | . . . . . . . Machines Disabled . | . . . . . . . Actions | -11 -10 -9 -9 -8 -7 -7 --------- Run | Yrd Mat Mat Min Mat Fac Sto Total 2667 | 66 118 495 122 383 1188 295 Wait 492 | 6 5 76 16 23 338 28 Move 1878 | 48 93 369 93 320 733 222 Hop . | . . . . . . . Pick Up 23 | 6 . 4 . 5 8 . Fast Attach 55 | 6 6 11 . 6 21 5 Attach 7 | . . 2 . . 5 . Detach 6 | . 1 3 . . 2 . Swap 13 | . . 2 3 4 3 1 Drop 33 | . . 10 3 9 9 2 Fire 96 | . 13 18 7 16 19 23 Melee 63 | . . . . . 49 14 Ram . | . . . . . . . Kick 1 | . . . . . 1 . Crush . | . . . . . . . Escape Stasis . | . . . . . . . Rewire . | . . . . . . . Trap . | . . . . . . . Miscellaneous . | . . . . . . . Route ------- -11/Scrapyard -10/Materials (discovered 2 exits: *Mat / [*Min]) -9/Materials (discovered 2 exits: [*Min x2]) -9/Mines -8/Materials -7/Factory -7/Storage History --------- Turn | Location | Event 6 | -11/Scrapyard | Discovered new exit (range 15) 75 | -11/Scrapyard | Entered Materials 164 | -10/Materials | Discovered new exit (range 9) 232 | -10/Materials | Discovered new exit (range 9) 263 | -10/Materials | Entered another Materials area 263 | -9/Materials | Evolved 2 slots: Propulsion x2 303 | -9/Materials | Build established: Mutant 684 | -9/Materials | Discovered new exit (range 8) 727 | -9/Materials | Repaired Beam Cannon 754 | -9/Materials | Repaired Aluminum Leg 922 | -9/Materials | Discovered new exit (range 8) 935 | -9/Materials | Entered Mines 989 | -9/Mines | Met a Derelict bent on vengeance 1068 | -9/Mines | Discovered new exit (range 5) 1088 | -9/Mines | Entered Materials 1088 | -8/Materials | Evolved 2 slots: Utility x2 1537 | -8/Materials | Discovered new exit (range 6) 1659 | -8/Materials | Entered Factory 1659 | -7/Factory | Evolved 2 slots: Propulsion x2 2071 | -7/Factory | Crushed by falling debris 2077 | -7/Factory | Crushed by falling debris 2091 | -7/Factory | Crushed by falling debris 2091 | -7/Factory | System corruption reached 10% 2092 | -7/Factory | Crushed by falling debris 2170 | -7/Factory | Lost 8 parts (1p3n4u) 2486 | -7/Factory | Core integrity fell below 50% 2799 | -7/Factory | Build established: Scavenger-Mutant 2876 | -7/Factory | Lost 6 parts (1p3n1u1w) 3106 | -7/Factory | Discovered new exit (range 5) 3113 | -7/Factory | Cargo convoy interrupted 3120 | -7/Factory | Entered Storage 3142 | -7/Storage | Assisted by bots powering up and referring to "LRC-V3" 3159 | -7/Storage | Met a pair of Derelict thieves 3291 | -7/Storage | Lost 12 allies 3318 | -7/Storage | Core integrity fell below 20% 3501 | -7/Storage | Destroyed by G-47 Trooper with Particle Gun Last Messages --------------- 03385_ &IM%JXHZ=|J9OVW 9Z4&6A2%S 0 03385_ Lyr. Light Armor Plating destroyed. 03399_ U-05 Engineer builds a Door. 03402_ 9#QU1/FFA>4MSGZGM:1 03452_ Acquired 49 matter. 03456_ Sneak attack on O-16 Technician. 03456_ O-16 Technician destroyed. 03459_ Acquired 12 matter. 03461_ Acquired Hacking Suite. 03467_ System corrupted: Matter fused (-7). 03472_ Connecting with Terminal... 03485_ System corrupted: Mic. Nuclear Core fused. Map ----- +----------------------------------------------------+ | | | | | | | | | | | | | | | ????????????????????????????????? | | ????????????????????????????????? | | ????????????????????????????????? | | ????????????????????????????????? | | ????????????????????????????????? | | ????????????????????????????????? | | ????????????????????????????????? | | ????????????????????#######?????? | | ????????????????????#"""""#?????? | | ???????????????????##""T""###???? | | ???????????????????# #???? | | ?????????????????### """ #???? | | ?????????????????#"" "" #???? | | ?????????????????#"T """= #???? | | ?????????????????#"" / * #???? | | ?????????????????### """ #???? | | ???????????????????# """ #???? | | ???????????????????# """ #???? | | ???????????????????# @ #???? | | ????????????############g####???? | | ?????????#### # g #?????? | | ?????????#""" # #?????? | | ?????????#"R + #?????? | | ?????????#""" """ # #?????? | | ?????????#""" """ """ + #?????? | | ?????????#### "G "" # #?????? | | ??????????### """ # ####### | | ??????????# " * %!! # # # | | ??????????##########%## # # | | ???????????????# #### # # | | ????????????########### # # | | ????????????# % ## + # | | ????????????# ## # # | | ????????????# """" ## # # | | ????????????# "[!"" ## ^ + # | | ????????????# "!% "" ## ^^# # | | ????????????# """!!" ## # # | | ????????????# ""[!" ## # # | | ????????????# " "" ## # # | | ????????????# ## ""##### | | %"####=[==* #+#""## ##???? | | =![=%=[= %=[== #????? | | [%[=*%%%[=[[ #????? | +----------------------------------------------------+ Best States ------------- Heat Dissipation 51 Coolant Potential 65 Energy Generation 15 Energy Capacity 280 Matter Stores 300 Matter Capacity 300 Sight Range 16 Terrain Scan Range 14 Terrain Scan Density 110 Armor Coverage 150 Evasion (%) 57 Targeting Accuracy 10 Target Analysis 5 Recoil Reduction 4 Offensive Hacking 10 Item Schematics ----------------- VSS Leg | -8/Materials | Scanalyzed Robot Schematics ------------------ None Fabricated ------------ Nothing Repaired ---------- Beam Cannon | 32% | -9/Materials Aluminum Leg | 13% | -9/Materials Alien Tech Used ----------------- None Achievements -------------- None Challenges ------------ None Game ------ Seed SubatomicAuthchipMount Manual? 0 Play Time 00:33:36 Cumulative 248.4 hours Start 2025.06.13 @ 14:24:00 End 2025.06.15 @ 13:22:31 Sessions 7 Manual Loads 0 Difficulty Rogue Special Mode None Game No. 201 Rogue 201 Adventurer 0 Explorer 0 Win Type - Total 1 Types 1/0/0/0/0/0/0/0/0/0 Lore% 51 Gallery% 58 Achievement% 45 Wizard Run 0 Options --------- Layout 0 ASCII 0 Keyboard 1 Movement Numpad Keybinds 0 Fullscreen 1 Font 12/Terminus Map View 83x54 Zoom Use 0% Tactical HUD 1 Map Filters NONE Filters NONE Steam 1 RUN: d3ce3542-0d39-4e97-8464-8ddef91cdc3b